{"text_format":"1","workbook":"xlsx","n_sheets":2,"sheets":["Bibliotheque","Feuil1"],"not_rendered":{"charts":0,"images":0,"macros":1,"external_links":0,"defined_names":10,"comments":1,"pivot_tables":0},"unopened":[],"bounds":{"document_bytes":16777216,"sheet_cells":100000,"rows_first":2000,"rows_last":500,"rows_between":2000,"halvings":0,"cell_chars":16384,"cell_head_chars":4096},"cells_cut":0,"cells_raw":0,"read":"whole","date_system":"1900"}

{"sheet":"Bibliotheque","index":0,"n_rows":17,"n_cols":19,"rows_kept":17,"cut":false,"hidden":false,"merged":[]}
[null,null,{"$f":"#REF!","v":{"$error":"#REF!"}},null,null,"BD"]
["rang","Prénom","Nom","Titre du livre","Place","Type","Série du livre","N° dans la série","Prété à","Prété le","Rendu le","année","Commentaires"]
[{"$f":"IF(B3<>\"\",IF(COUNTIF(O:O,O3)<2000,COUNTIF(O:O,O3),\"\"),\"\")","v":1},"Jean Michel","Asselin","Un année dans les Alpes","D5d","aventure","Un année dans les Alpes",null,null,null,null,null,null,null,{"$f":"CONCATENATE(C3,\" \",B3)","v":"Asselin Jean Michel"},{"$f":"IF(O3<>O4,A3,\"\")","v":1},{"$f":"IF(O3<>O4,CONCATENATE(\"  \",O3),\"\")","v":"  Asselin Jean Michel"},{"$f":"IF(F3<>F4,F3,\"\")","v":""},{"$f":"IF(F3<>F2,1,S2+1)","v":1}]
[{"$f":"IF(B4<>\"\",IF(COUNTIF(O:O,O4)<2000,COUNTIF(O:O,O4),\"\"),\"\")","v":1},"M","Morillot","A travers nos Alpes","D3g1","aventure","A travers nos Alpes",null,null,null,null,null,null,null,"Morillot M",1,"  Morillot M","",2]
[{"$f":"IF(B5<>\"\",IF(COUNTIF(O:O,O5)<2000,COUNTIF(O:O,O5),\"\"),\"\")","v":1},"Joseph","Peyré","Matterhorn","G","aventure","Matterhorn",null,null,null,null,null,null,null,"Peyré Joseph",1,"  Peyré Joseph","aventure",3]
[{"$f":"IF(B6<>\"\",IF(COUNTIF(O:O,O6)<2000,COUNTIF(O:O,O6),\"\"),\"\")","v":1},"Holger","Aue","Les Allumés des gaz","D4g","BD","Les Allumés des gaz",null,null,null,null,null,null,null,"Aue Holger",1,"  Aue Holger","",1]
[{"$f":"IF(B7<>\"\",IF(COUNTIF(O:O,O7)<2000,COUNTIF(O:O,O7),\"\"),\"\")","v":1},"Claire","Bretecher","Les mères","D8g","BD","Les mères",null,null,null,null,null,null,null,"Bretecher Claire",1,"  Bretecher Claire","",2]
[{"$f":"IF(B8<>\"\",IF(COUNTIF(O:O,O8)<2000,COUNTIF(O:O,O8),\"\"),\"\")","v":7},"Laudec","Cauvin","Papa a de la classe","D4c","BD","Cedric",4,null,null,null,null,null,null,"Cauvin Laudec","","","",3]
[{"$f":"IF(B9<>\"\",IF(COUNTIF(O:O,O9)<2000,COUNTIF(O:O,O9),\"\"),\"\")","v":7},"Laudec","Cauvin","Comme sur des roulettes","D4c","BD","Cedric",8,null,null,null,null,null,null,"Cauvin Laudec","","","",4]
[{"$f":"IF(B10<>\"\",IF(COUNTIF(O:O,O10)<2000,COUNTIF(O:O,O10),\"\"),\"\")","v":7},"Laudec","Cauvin","Terrain minets","D4c","BD","Cedric",12,null,null,null,null,null,null,"Cauvin Laudec","","","",5]
[{"$f":"IF(B11<>\"\",IF(COUNTIF(O:O,O11)<2000,COUNTIF(O:O,O11),\"\"),\"\")","v":7},"Laudec","Cauvin","Au pied j'ai dit","D4c","BD","Cedric",14,null,null,null,null,null,null,"Cauvin Laudec","","","",6]
[{"$f":"IF(B12<>\"\",IF(COUNTIF(O:O,O12)<2000,COUNTIF(O:O,O12),\"\"),\"\")","v":7},"Laudec","Cauvin","Avis de tempête","D4c","BD","Cedric",15,null,null,null,null,null,null,"Cauvin Laudec","","","",7]
[{"$f":"IF(B13<>\"\",IF(COUNTIF(O:O,O13)<2000,COUNTIF(O:O,O13),\"\"),\"\")","v":7},"Laudec","Cauvin","Gâteau surprise","D4c","BD","Cedric",null,null,null,null,null,null,null,"Cauvin Laudec","","","",8]
[{"$f":"IF(B14<>\"\",IF(COUNTIF(O:O,O14)<2000,COUNTIF(O:O,O14),\"\"),\"\")","v":7},"Laudec","Cauvin","Où sont les freins","D4c","BD","Cedric",null,null,null,null,null,null,null,"Cauvin Laudec",7,"  Cauvin Laudec","",9]
[{"$f":"IF(B15<>\"\",IF(COUNTIF(O:O,O15)<2000,COUNTIF(O:O,O15),\"\"),\"\")","v":1},"Raoul","Cauvin","Les bleus de la balle","D4c","BD","Les tuniques bleues",28,null,null,null,null,null,null,"Cauvin Raoul",1,"  Cauvin Raoul","",10]
[{"$f":"IF(B16<>\"\",IF(COUNTIF(O:O,O16)<2000,COUNTIF(O:O,O16),\"\"),\"\")","v":2},"Philippe","Chappuis","C'est pô juste","D4c","BD","Titeuf",4,null,null,null,null,null,null,"Chappuis Philippe","","","",11]
[{"$f":"IF(B17<>\"\",IF(COUNTIF(O:O,O17)<2000,COUNTIF(O:O,O17),\"\"),\"\")","v":2},"Philippe","Chappuis","Titeuf et le derrière de choses","D4c","BD","Titeuf",5,null,null,null,null,null,null,"Chappuis Philippe",{"$f":"IF(O17<>#REF!,A17,\"\")","v":{"$error":"#REF!"}},{"$f":"IF(O17<>#REF!,CONCATENATE(\"  \",O17),\"\")","v":{"$error":"#REF!"}},{"$f":"IF(F17<>#REF!,F17,\"\")","v":{"$error":"#REF!"}},12]

{"sheet":"Feuil1","index":1,"n_rows":20,"n_cols":2,"rows_kept":20,"cut":false,"hidden":false,"merged":[]}
[]
[]
[]
[]
[null,"aventure"]
[null,"BD"]
[null,"drames"]
[null,"echecs"]
[null,"encyclo"]
[null,"enfant"]
[null,"Fantaisy"]
[null,"Histoire"]
[null,"humour"]
[null,"montatgne"]
[null,"musique"]
[null,"philo"]
[null,"poésie"]
[null,"roman"]
[null,"sciences"]
[null,"social"]